Workbook

Sheet 見積表紙別カタログ有
A1: （仕様書１）
A2: 什器備品仕様書
A3: １ 納入場所 | B3: 埼玉県狭山市加佐志１３９－１
B4: 社会福祉法人東雲会（当該各室）
A6: ２ 納入期限 | B6: 令和2年11月1日
A8: ３ 物品及び数量
A9: 注１ 参考商品と同色又は近似色とする
A10: 注２ 参考商品と同価格帯以上のものとする
A11: 注３ 参考メーカー：(株)オカムラ
A12: 品名 | B12: 参考商品記号・寸法・仕様 | F12: 数量
A13: 【１F】
A15: 風除室
A17: 傘立て | B17: Ｌ９７５ 傘立て オープンタイプ ７９８Ｗ
B18: 798W300D500H ｱﾙﾐ | E18: L975AB A01 | F18: 1
A21: 相談・応接室
B23: Ｌｉｖｅｓミーティングテーブル ４本丸脚アジャスター／矩形 1800×900×720
B24: 1800W900D720H ﾁｮｰｸﾄﾞｴﾙﾑ/ﾈｵﾌﾞﾗｯｸ | E24: 87AJAM MES1 | F24: 1
B25: ライブス カフェチェア ４本脚 座パッド付 ブラックフレーム MW71シェル
B26: 525W520D760H440SH ﾀﾞｰｸﾌﾞﾗｳﾝ | E26: L423AQ FXW3 | F26: 6
A29: 静養室
B31: Ｌｉｖｅｓミーティングテーブル ４本丸脚アジャスター／矩形 ７５０×７５０×７２０
B32: 750W750D720H ﾁｮｰｸﾄﾞｴﾙﾑ/ﾈｵﾌﾞﾗｯｸ | E32: 87AJAE MES1 | F32: 1
B33: ケッテ クローズ脚 座パッドタイプ 背パッドなし ブラックフレーム
B34: 512W532D781H ﾁｬｺｰﾙｸﾞﾚｰ ブラックシェル 座面：チャコールグレー | E34: 8105KG | F34: 2
A37: 事務室
B39: アドバンスＳ 両袖４段引出 左３段引出＋右４段引出
B40: 1400W700D720H ﾎﾜｲﾄ | E40: 3VAPAH MK28 | F40: 1
B41: アドバンスＳ 右片袖４段引出 右４段引出（小引出＋小引出＋一般引出＋Ａ４・Ｂ４兼用）
B42: 1100W700D720H ﾎﾜｲﾄ | E42: 3VBWAK MK28 | F42: 6
B43: フィノラ，可動肘，ミドル，座クッション，ホワイトＰ，ホワイト脚，ホワイトＢ，
B44: 690W540D910H420SH ｾｰｼﾞ ハンガー無，ランバー無 | E44: C783WW F1G6 | F44: 1
B45: ＣＧ‐Ｍ，肘無，背メッシュ，ハンガー無 ホワイトボディ，ナイロンキャスター
B46: 463W541D824H385-477SH,824-916H ｾｰｼﾞ | E46: CG11WR FZK6 | F46: 6
B47: レクトライン収納 クリスタルケース Ａ４浅深コンビ
B48: 900W400D1100H ﾈｵﾎﾜｲﾄ | E48: 4H03AC ZA75 | F48: 1
B49: レクトライン収納 ２枚引違い書庫
B50: 900W400D1050H ﾈｵﾎﾜｲﾄ | E50: 4H43ZZ ZA75 | F50: 1
B51: レクトライン収納 シングルベース
B52: 900W400D50H ﾈｵﾎﾜｲﾄ | E52: 4H92ZZ ZA75 | F52: 1
B53: レクトライン収納 シェルビング
B54: 900W400D1050H ﾈｵﾎﾜｲﾄ | E54: 4H53ZZ ZA75 | F54: 1
B55: レクトライン収納 ラテラル３段
B56: 900W400D1100H ﾈｵﾎﾜｲﾄ | E56: 4H73ZC ZA75 | F56: 1
B57: レクトライン収納 両開き書庫 フラットヒンジ仕様
B58: 900W400D1050H ﾈｵﾎﾜｲﾄ | E58: 4H33ZF ZA75 | F58: 2
B59: レクトライン収納 ラテラル３段
B60: 900W400D1100H ﾈｵﾎﾜｲﾄ | E60: 4H73ZC ZA75 | F60: 2
B61: レクトライン収納 ３枚引違い書庫
B62: 900W400D1050H ﾈｵﾎﾜｲﾄ | E62: 4H43ZL ZA75 | F62: 2
B63: レクトライン収納 シングルベース
B64: 900W400D50H ﾈｵﾎﾜｲﾄ | E64: 4H92ZZ ZA75 | F64: 2
B65: 両開き耐火金庫１Ｈ（シリンダー）
B66: 900W450D1100H(260KG) ﾈｵﾎﾜｲﾄ | E66: FK4BRA ZA75 | F66: 1
A69: 訓練室1／2／3
B71: Ｌｉｖｅｓミーティングテーブル ４本丸脚アジャスター／矩形 １８００×９００×７２０
B72: 1800W900D720H PWﾗｲﾄ/ﾌﾞﾗｯｸ | E72: 87AJAM MDA4 | F72: 6
B73: ケッテ クローズ脚 座パッドタイプ 背パッドなし ブラックフレーム ブラックシェル
B74: 512W532D781H ﾁｬｺｰﾙｸﾞﾚｰ 座面：チャコールグレー | E74: 8105XB | F74: 36
A77: 食堂・多目的ホール
B79: Ｌｉｖｅｓミーティングテーブル ４本丸脚アジャスター／矩形 １８００×９００×７２０
B80: 1800W900D720H PWﾗｲﾄ/ﾌﾞﾗｯｸ | E80: 87AJAM MDA4 | F80: 4
B81: Ｌｉｖｅｓミーティングテーブル 単柱脚天板固定／丸形 １０５０Φ×７２０
B82: 1050W1050D720H PWﾗｲﾄ/ﾌﾞﾗｯｸ | E82: 87ABBP MDA4 | F82: 4
B83: ケッテ クローズ脚 座パッドタイプ 背パッドなし ブラックフレーム ブラックシェル
B84: 512W532D781H ﾁｬｺｰﾙｸﾞﾚｰ 座面：チャコールグレー | E84: 8105XB | F84: 40
A87: 食品庫
B89: ６Ｊ中軽量棚 単体型２００ｋｇ天地５段
B90: 1200W470D2100H ｽﾉｰﾎﾜｲﾄ | E90: 6J75LG Z269 | F90: 2
B91: ６３型 床・壁固定金具
B92: 4ｺｲﾘ ﾎﾞﾙﾄﾂｷ ﾕﾆｸﾛﾒｯｷ | E92: 63301P T03 | F92: 1
A95: 休憩・ロッカー室
B97: Ｌｉｖｅｓミーティングテーブル ４本丸脚アジャスター／矩形 １５００×７５０×７２０
B98: 1500W750D720H PWﾗｲﾄ/ﾌﾞﾗｯｸ | E98: 87AJAG MDA4 | F98: 1
B99: ケッテ クローズ脚 座パッドタイプ 背パッドなし ブラックフレーム ブラックシェル
B100: 512W532D781H ﾁｬｺｰﾙｸﾞﾚｰ 座面：チャコールグレー | E100: 8105XB | F100: 4
B101: ＦＺロッカー ３人用シリンダー錠
B102: 900W515D1790H ﾗｲﾄｽﾓ-ｸ | E102: 4573FZ Z13 | F102: 2
A105: 倉庫
B107: ６Ｊ中軽量棚 単体型２００ｋｇ天地５段
B108: 900W470D2100H ｽﾉｰﾎﾜｲﾄ | E108: 6J75LB Z269 | F108: 2
B109: ６Ｊ中軽量棚 連結型２００ｋｇ天地５段
B110: 900W470D2100H ｽﾉｰﾎﾜｲﾄ | E110: 6J75MB Z269 | F110: 7
B111: ６３型 床・壁固定金具
B112: 4ｺｲﾘ ﾎﾞﾙﾄﾂｷ ﾕﾆｸﾛﾒｯｷ | E112: 63301P T03 | F112: 3
A115: 倉庫（階段下）
B117: ６Ｊ中軽量棚 単体型２００ｋｇ天地５段
B118: 900W470D2100H ｽﾉｰﾎﾜｲﾄ | E118: 6J75LB Z269 | F118: 1
B119: ６３型 床・壁固定金具
B120: 4ｺｲﾘ ﾎﾞﾙﾄﾂｷ ﾕﾆｸﾛﾒｯｷ | E120: 63301P T03 | F120: 1
A125: 【２Ｆ】
A127: 食堂・居間
B129: Ｌｉｖｅｓミーティングテーブル ４本丸脚アジャスター／矩形 １８００×９００×７２０
B130: 1800W900D720H PWﾗｲﾄ/ﾌﾞﾗｯｸ | E130: 87AJAM MDA4 | F130: 1
B131: Ｌｉｖｅｓミーティングテーブル 単柱脚天板固定／丸形 １０５０Φ×７２０
B132: 1050W1050D720H PWﾗｲﾄ/ﾌﾞﾗｯｸ | E132: 87ABBP MDA4 | F132: 1
B133: ケッテ クローズ脚 座パッドタイプ 背パッドなし ブラックフレーム ブラックシェル
B134: 512W532D781H ﾁｬｺｰﾙｸﾞﾚｰ 座面：チャコールグレー | E134: 8105XB | F134: 10
A137: 会議室
B139: マルカ サイドフォールドテーブル 棚板無 樹脂幕板付 １８００×６００
B140: 1800W600D720H PWﾐﾃﾞｨｱﾑ/ﾌﾞﾗｯｸ | E140: 81F5AB MDA5 | F140: 4
B141: マルカ サイドフォールドテーブル 棚板無 樹脂幕板付 １５００×６００
B142: 1500W600D720H PWﾐﾃﾞｨｱﾑ/ﾌﾞﾗｯｸ | E142: 81F5AD MDA5 | F142: 1
B143: ケッテ クローズ脚 座パッドタイプ 背パッドなし ブラックフレーム ブラックシェル
B144: 512W532D781H ﾁｬｺｰﾙｸﾞﾚｰ 座面：チャコールグレー | E144: 8105XB | F144: 14
B145: ４３８０ 壁掛ボード／ホワイト
B146: 1800W78D913H ﾎ-ﾛ-ﾎﾜｲﾄ | E146: 4380HA H01 | F146: 1
A150: ４ 納入条件等 ① 搬入、据付および調整にかかる経費は落札者の負担とする。 ② 搬入、据付をする際は建物・設備等に損害を与えないよう必要な処置をすること。 ③ 納入後１年以内の故障が発生した場合は落札者が無償で修理すること。但しメーカー又は落札 者の保証期間がこれより長い場合はその期間とする。 ④ 保証期間満了後においても、故障等発生した場合には直ちに対処できる体制とすること。 ⑤ 取り扱いや操作の方法について十分な説明・指導を行うこと。 ⑥ 本仕様書に示した機能が全て発揮されるよう施工し、本仕様書に記載されていない場合でも、 技術上または当然必要と思われる事項については、落札者の負担において施工すること。

Sheet 見積表紙別カタログ有 (2) (hidden)
A1: 1960010186-006 | F1: 御 見 積 書 | M1: 2020-08-03 | Q1: 0
N2: 43B-2P300 | Q2: 42
B3: 株式会社 フカワビジネス 御中 | C3: 株式会社 フカワビジネス 御中 | Q3: 2020年8月3日付・第1960010186-006号
C5: 下記の通り御見積り申し上げます。
C6: 何卒、ご用命を賜りますようよろしくお願い申し上げます。
C7: 御見積金額 | F7: =$L201 -> 4096600 | G7: -
L8: 株式会社オカムラ
L9: 大宮支店
L11: 〒 330-6017
L12: 埼玉県さいたま市中央区新都心１１‐２
C13: 本御見積金額には消費税等は含まれません。 | L13: 明治安田生命さいたま新都心ビル
L14: ランド・アクシス・タワー１７階
C15: 件 名 ： | F15: （仮称）生活支援事業所あさひ新築工事 | M15: TEL 048-601-2561
C16: 納 期 ： | F16: 別途御打ち合わせによる | M16: FAX 048-601-2560
C17: 受 渡 地 ： | F17: 生活支援事業所あさひ
C18: 御支払条件 ： | F18: 毎月末日締切
F19: 10万円未満 翌月末日 振込 御支払
F20: 10万円以上 翌月末日 60日 手形 御支払
C27: 見積有効期限： | F27: 30日間
C28: 備 考 ：
C31: この見積は平日・標準条件での納入の見積になります。土日祝日等の納品の場合は再度見積提示させて頂きます。
N32: (単位：円)
B33: 区分 | C33: 行№ | D33: 項目No | E33: 品名・寸法・仕様 | H33: 製品 | I33: 数量 | J33: 単位 | K33: 単価 | L33: 金額 | M33: 定価 | N33: ｶﾀﾛｸﾞ頁 | O33: 備考 | R33: 環境対応 | T33: 集計番号 | U33: 生産準備／廃番情報 | V33: Eタイプ
B34: 1 | C34: 1 | E34: 【１Ｆ】 | T34: 1000
B36: 2 | C36: 2 | E36: ◆風除室 | T36: 1100
C38: 3 | D38: 001 | E38: Ｌ９７５ 傘立て オープンタイプ ７９８Ｗ
E39: 798W300D500H ｱﾙﾐ | H39: L975AB A01 | I39: 1 | J39: 台 | K39: 17100 | L39: =ROUNDUP($I$39*$K$39, 0) -> 17100 | M39: 34300 | N39: P823 | W39: 798W300D500H | X39: ｱﾙﾐ | AD39: 1 | AE39: 1
K41: 【 小 計 】 | L41: =IF(COUNTIF($K37:$K40,"【金額小計】")=0, SUM($L37:$L40),SUMIF($K37:$K40,"【金額小計】",$L37:$L40)+SUMIF($K37:$K40,"【出精値引】",$L37:$L40)) -> 17100
B42: 4 | C42: 4 | E42: ◆相談・応接室 | T42: 1200
C44: 5 | D44: 001 | E44: Ｌｉｖｅｓミーティングテーブル ４本丸脚アジャスター／矩形 １８００×９００×７２０
E45: 1800W900D720H ﾁｮｰｸﾄﾞｴﾙﾑ/ﾈｵﾌﾞﾗｯｸ | H45: 87AJAM MES1 | I45: 1 | J45: 台 | K45: 37200 | L45: =ROUNDUP($I$45*$K$45, 0) -> 37200 | M45: 74500 | N45: P65 | W45: 1800W900D720H | X45: ﾁｮｰｸﾄﾞｴﾙﾑ/ﾈｵﾌﾞﾗｯｸ | AD45: 1 | AE45: 1
C46: 6 | D46: 002 | E46: ライブス カフェチェア ４本脚 座パッド付 ブラックフレーム MW71シェル
E47: 525W520D760H440SH ﾀﾞｰｸﾌﾞﾗｳﾝ | H47: L423AQ FXW3 | I47: 6 | J47: 脚 | K47: 25600 | L47: =ROUNDUP($I$47*$K$47, 0) -> 153600 | M47: 51270 | N47: P75 | W47: 525W520D760H440SH | X47: ﾀﾞｰｸﾌﾞﾗｳﾝ | AD47: 1 | AE47: 1
K49: 【 小 計 】 | L49: =IF(COUNTIF($K43:$K48,"【金額小計】")=0, SUM($L43:$L48),SUMIF($K43:$K48,"【金額小計】",$L43:$L48)+SUMIF($K43:$K48,"【出精値引】",$L43:$L48)) -> 190800
B50: 7 | C50: 7 | E50: ◆診察・医務室 | T50: 1300
C52: 8 | D52: 001 | E52: Ｌｉｖｅｓミーティングテーブル ４本丸脚アジャスター／矩形 ７５０×７５０×７２０
E53: 750W750D720H ﾁｮｰｸﾄﾞｴﾙﾑ/ﾈｵﾌﾞﾗｯｸ | H53: 87AJAE MES1 | I53: 1 | J53: 台 | K53: 23000 | L53: =ROUNDUP($I$53*$K$53, 0) -> 23000 | M53: 46100 | N53: P65 | W53: 750W750D720H | X53: ﾁｮｰｸﾄﾞｴﾙﾑ/ﾈｵﾌﾞﾗｯｸ | AD53: 1 | AE53: 1
C54: 9 | D54: 002 | E54: ケッテ クローズ脚 座パッドタイプ 背パッドなし ブラックフレーム ブラックシェル 座面：チャコールグレー
E55: 512W532D781H ﾁｬｺｰﾙｸﾞﾚｰ | H55: 8105KG | I55: 2 | J55: 脚 | K55: 7600 | L55: =ROUNDUP($I$55*$K$55, 0) -> 15200 | N55: P396 | W55: 512W532D781H | X55: ﾁｬｺｰﾙｸﾞﾚｰ
K57: 【 小 計 】 | L57: =IF(COUNTIF($K51:$K56,"【金額小計】")=0, SUM($L51:$L56),SUMIF($K51:$K56,"【金額小計】",$L51:$L56)+SUMIF($K51:$K56,"【出精値引】",$L51:$L56)) -> 38200
B58: 12 | C58: 10 | E58: ◆事務室 | T58: 1400
C60: 11 | D60: 001 | E60: アドバンスＳ 両袖４段引出 左３段引出＋右４段引出
E61: 1400W700D720H ﾎﾜｲﾄ | H61: 3VAPAH MK28 | I61: 1 | J61: 台 | K61: 66400 | L61: =ROUNDUP($I$61*$K$61, 0) -> 66400 | M61: 132830 | N61: P258 | W61: 1400W700D720H | X61: ﾎﾜｲﾄ | AD61: 1 | AE61: 1
C62: 12 | D62: 002 | E62: アドバンスＳ 右片袖４段引出 右４段引出（小引出＋小引出＋一般引出＋Ａ４・Ｂ４兼用）
E63: 1100W700D720H ﾎﾜｲﾄ | H63: 3VBWAK MK28 | I63: 6 | J63: 台 | K63: 44400 | L63: =ROUNDUP($I$63*$K$63, 0) -> 266400 | M63: 88850 | N63: P258 | W63: 1100W700D720H | X63: ﾎﾜｲﾄ | AD63: 1 | AE63: 1
C64: 13 | D64: 003 | E64: フィノラ，可動肘，ミドル，座クッション，ホワイトＰ，ホワイト脚，ホワイトＢ，ハンガー無，ランバー無
E65: 690W540D910H420SH ｾｰｼﾞ | H65: C783WW F1G6 | I65: 1 | J65: 脚 | K65: 69600 | L65: =ROUNDUP($I$65*$K$65, 0) -> 69600 | M65: 139200 | N65: P308 | W65: 690W540D910H420SH | X65: ｾｰｼﾞ | AD65: 1 | AE65: 1
C66: 14 | D66: 004 | E66: ＣＧ‐Ｍ，肘無，背メッシュ，ハンガー無 ホワイトボディ，ナイロンキャスター
E67: 463W541D824H385-477SH,824-916H ｾｰｼﾞ | H67: CG11WR FZK6 | I67: 6 | J67: 脚 | K67: 18600 | L67: =ROUNDUP($I$67*$K$67, 0) -> 111600 | M67: 37200 | N67: P352 | W67: 463W541D824H385-477SH,824-916H | X67: ｾｰｼﾞ | AD67: 2 | AE67: 1
C68: 15 | D68: 005 | E68: レクトライン収納 クリスタルケース Ａ４浅深コンビ
E69: 900W400D1100H ﾈｵﾎﾜｲﾄ | H69: 4H03AC ZA75 | I69: 1 | J69: 台 | K69: 65400 | L69: =ROUNDUP($I$69*$K$69, 0) -> 65400 | M69: 130800 | N69: P595 | W69: 900W400D1100H | X69: ﾈｵﾎﾜｲﾄ | AD69: 1 | AE69: 1
C70: 16 | D70: 006 | E70: レクトライン収納 ２枚引違い書庫
E71: 900W400D1050H ﾈｵﾎﾜｲﾄ | H71: 4H43ZZ ZA75 | I71: 1 | J71: 台 | K71: 27100 | L71: =ROUNDUP($I$71*$K$71, 0) -> 27100 | M71: 54300 | N71: P594 | W71: 900W400D1050H | X71: ﾈｵﾎﾜｲﾄ | AD71: 1 | AE71: 1
C72: 17 | D72: 007 | E72: レクトライン収納 シングルベース
E73: 900W400D50H ﾈｵﾎﾜｲﾄ | H73: 4H92ZZ ZA75 | I73: 1 | J73: 台 | K73: 5100 | L73: =ROUNDUP($I$73*$K$73, 0) -> 5100 | M73: 10200 | N73: P603 | W73: 900W400D50H | X73: ﾈｵﾎﾜｲﾄ | AD73: 2
C74: 18 | D74: 008 | E74: レクトライン収納 シェルビング
E75: 900W400D1050H ﾈｵﾎﾜｲﾄ | H75: 4H53ZZ ZA75 | I75: 1 | J75: 台 | K75: 17700 | L75: =ROUNDUP($I$75*$K$75, 0) -> 17700 | M75: 35400 | N75: P594 | W75: 900W400D1050H | X75: ﾈｵﾎﾜｲﾄ | AD75: 1 | AE75: 1
N76: (単位：円)
B77: 区分 | C77: 行№ | D77: 項目No | E77: 品名・寸法・仕様 | H77: 製品 | I77: 数量 | J77: 単位 | K77: 単価 | L77: 金額 | M77: 定価 | N77: ｶﾀﾛｸﾞ頁 | O77: 備考 | R77: 環境対応 | T77: 集計番号 | U77: 生産準備／廃番情報 | V77: Eタイプ
C78: 19 | D78: 009 | E78: レクトライン収納 ラテラル３段
E79: 900W400D1100H ﾈｵﾎﾜｲﾄ | H79: 4H73ZC ZA75 | I79: 1 | J79: 台 | K79: 55000 | L79: =ROUNDUP($I$79*$K$79, 0) -> 55000 | M79: 110100 | N79: P594 | W79: 900W400D1100H | X79: ﾈｵﾎﾜｲﾄ | AD79: 1 | AE79: 1
C80: 20 | D80: 010 | E80: レクトライン収納 両開き書庫 フラットヒンジ仕様
E81: 900W400D1050H ﾈｵﾎﾜｲﾄ | H81: 4H33ZF ZA75 | I81: 2 | J81: 台 | K81: 27400 | L81: =ROUNDUP($I$81*$K$81, 0) -> 54800 | M81: 54900 | N81: P593 | W81: 900W400D1050H | X81: ﾈｵﾎﾜｲﾄ | AD81: 1 | AE81: 1
C82: 21 | D82: 011 | E82: レクトライン収納 ラテラル３段
E83: 900W400D1100H ﾈｵﾎﾜｲﾄ | H83: 4H73ZC ZA75 | I83: 2 | J83: 台 | K83: 55000 | L83: =ROUNDUP($I$83*$K$83, 0) -> 110000 | M83: 110100 | N83: P594 | W83: 900W400D1100H | X83: ﾈｵﾎﾜｲﾄ | AD83: 1 | AE83: 1
C84: 22 | D84: 012 | E84: レクトライン収納 ３枚引違い書庫
E85: 900W400D1050H ﾈｵﾎﾜｲﾄ | H85: 4H43ZL ZA75 | I85: 2 | J85: 台 | K85: 36300 | L85: =ROUNDUP($I$85*$K$85, 0) -> 72600 | M85: 72700 | N85: P594 | W85: 900W400D1050H | X85: ﾈｵﾎﾜｲﾄ | AD85: 1 | AE85: 1
C86: 23 | D86: 013 | E86: レクトライン収納 シングルベース
E87: 900W400D50H ﾈｵﾎﾜｲﾄ | H87: 4H92ZZ ZA75 | I87: 2 | J87: 台 | K87: 5100 | L87: =ROUNDUP($I$87*$K$87, 0) -> 10200 | M87: 10200 | N87: P603 | W87: 900W400D50H | X87: ﾈｵﾎﾜｲﾄ | AD87: 2
C88: 24 | D88: 014 | E88: 両開き耐火金庫１Ｈ（シリンダー）
E89: 900W450D1100H(260KG) ﾈｵﾎﾜｲﾄ | H89: FK4BRA ZA75 | I89: 1 | J89: 台 | K89: 262000 | L89: =ROUNDUP($I$89*$K$89, 0) -> 262000 | M89: 524000 | N89: P601 | W89: 900W450D1100H(260KG) | X89: ﾈｵﾎﾜｲﾄ | AD89: 2
K91: 【 小 計 】 | L91: =IF(COUNTIF($K59:$K90,"【金額小計】")=0, SUM($L59:$L90),SUMIF($K59:$K90,"【金額小計】",$L59:$L90)+SUMIF($K59:$K90,"【出精値引】",$L59:$L90)) -> 1193900
B92: 27 | C92: 25 | E92: ◆訓練室１・２・３ | T92: 1500
C94: 26 | D94: 001 | E94: Ｌｉｖｅｓミーティングテーブル ４本丸脚アジャスター／矩形 １８００×９００×７２０
E95: 1800W900D720H PWﾗｲﾄ/ﾌﾞﾗｯｸ | H95: 87AJAM MDA4 | I95: 6 | J95: 台 | K95: 38300 | L95: =ROUNDUP($I$95*$K$95, 0) -> 229800 | M95: 76700 | N95: P65 | W95: 1800W900D720H | X95: PWﾗｲﾄ/ﾌﾞﾗｯｸ | AD95: 1 | AE95: 1
C96: 27 | D96: 002 | E96: ケッテ クローズ脚 座パッドタイプ 背パッドなし ブラックフレーム ブラックシェル 座面：チャコールグレー
E97: 512W532D781H ﾁｬｺｰﾙｸﾞﾚｰ | H97: 8105XB | I97: 36 | J97: 脚 | K97: 7600 | L97: =ROUNDUP($I$97*$K$97, 0) -> 273600 | N97: P396 | W97: 512W532D781H | X97: ﾁｬｺｰﾙｸﾞﾚｰ
K99: 【 小 計 】 | L99: =IF(COUNTIF($K93:$K98,"【金額小計】")=0, SUM($L93:$L98),SUMIF($K93:$K98,"【金額小計】",$L93:$L98)+SUMIF($K93:$K98,"【出精値引】",$L93:$L98)) -> 503400
B100: 30 | C100: 28 | E100: ◆食堂・多目的ホール | T100: 1600
C102: 29 | D102: 001 | E102: Ｌｉｖｅｓミーティングテーブル ４本丸脚アジャスター／矩形 １８００×９００×７２０
E103: 1800W900D720H PWﾗｲﾄ/ﾌﾞﾗｯｸ | H103: 87AJAM MDA4 | I103: 4 | J103: 台 | K103: 38300 | L103: =ROUNDUP($I$103*$K$103, 0) -> 153200 | M103: 76700 | N103: P65 | W103: 1800W900D720H | X103: PWﾗｲﾄ/ﾌﾞﾗｯｸ | AD103: 1 | AE103: 1
C104: 30 | D104: 002 | E104: Ｌｉｖｅｓミーティングテーブル 単柱脚天板固定／丸形 １０５０Φ×７２０
E105: 1050W1050D720H PWﾗｲﾄ/ﾌﾞﾗｯｸ | H105: 87ABBP MDA4 | I105: 4 | J105: 台 | K105: 43200 | L105: =ROUNDUP($I$105*$K$105, 0) -> 172800 | M105: 86400 | N105: P61 | W105: 1050W1050D720H | X105: PWﾗｲﾄ/ﾌﾞﾗｯｸ | AD105: 1 | AE105: 1
C106: 31 | D106: 003 | E106: ケッテ クローズ脚 座パッドタイプ 背パッドなし ブラックフレーム ブラックシェル 座面：チャコールグレー
E107: 512W532D781H ﾁｬｺｰﾙｸﾞﾚｰ | H107: 8105XB | I107: 40 | J107: 脚 | K107: 7600 | L107: =ROUNDUP($I$107*$K$107, 0) -> 304000 | N107: P396 | W107: 512W532D781H | X107: ﾁｬｺｰﾙｸﾞﾚｰ
K109: 【 小 計 】 | L109: =IF(COUNTIF($K101:$K108,"【金額小計】")=0, SUM($L101:$L108),SUMIF($K101:$K108,"【金額小計】",$L101:$L108)+SUMIF($K101:$K108,"【出精値引】",$L101:$L108)) -> 630000
B110: 34 | C110: 32 | E110: ◆食品庫 | T110: 1700
C112: 33 | D112: 001 | E112: ６Ｊ中軽量棚 単体型２００ｋｇ天地５段
E113: 1200W470D2100H ｽﾉｰﾎﾜｲﾄ | H113: 6J75LG Z269 | I113: 2 | J113: 連 | K113: 30100 | L113: =ROUNDUP($I$113*$K$113, 0) -> 60200 | M113: 60360 | N113: P680 | W113: 1200W470D2100H | X113: ｽﾉｰﾎﾜｲﾄ | AD113: 1 | AE113: 1
C114: 34 | D114: 002 | E114: ６３型 床・壁固定金具
E115: 4ｺｲﾘ ﾎﾞﾙﾄﾂｷ ﾕﾆｸﾛﾒｯｷ | H115: 63301P T03 | I115: 1 | J115: セット | K115: 1300 | L115: =ROUNDUP($I$115*$K$115, 0) -> 1300 | M115: 2630 | N115: P682，P694 | W115: 4ｺｲﾘ ﾎﾞﾙﾄﾂｷ | X115: ﾕﾆｸﾛﾒｯｷ | AD115: 2
K117: 【 小 計 】 | L117: =IF(COUNTIF($K111:$K116,"【金額小計】")=0, SUM($L111:$L116),SUMIF($K111:$K116,"【金額小計】",$L111:$L116)+SUMIF($K111:$K116,"【出精値引】",$L111:$L116)) -> 61500
B118: 37 | C118: 35 | E118: ◆休憩・ロッカー室 | T118: 1800
N120: (単位：円)
B121: 区分 | C121: 行№ | D121: 項目No | E121: 品名・寸法・仕様 | H121: 製品 | I121: 数量 | J121: 単位 | K121: 単価 | L121: 金額 | M121: 定価 | N121: ｶﾀﾛｸﾞ頁 | O121: 備考 | R121: 環境対応 | T121: 集計番号 | U121: 生産準備／廃番情報 | V121: Eタイプ
C122: 36 | D122: 001 | E122: Ｌｉｖｅｓミーティングテーブル ４本丸脚アジャスター／矩形 １５００×７５０×７２０
E123: 1500W750D720H PWﾗｲﾄ/ﾌﾞﾗｯｸ | H123: 87AJAG MDA4 | I123: 1 | J123: 台 | K123: 33500 | L123: =ROUNDUP($I$123*$K$123, 0) -> 33500 | M123: 67000 | N123: P65 | W123: 1500W750D720H | X123: PWﾗｲﾄ/ﾌﾞﾗｯｸ | AD123: 1 | AE123: 1
C124: 37 | D124: 002 | E124: ケッテ クローズ脚 座パッドタイプ 背パッドなし ブラックフレーム ブラックシェル 座面：チャコールグレー
E125: 512W532D781H ﾁｬｺｰﾙｸﾞﾚｰ | H125: 8105XB | I125: 4 | J125: 脚 | K125: 7600 | L125: =ROUNDUP($I$125*$K$125, 0) -> 30400 | N125: P396 | W125: 512W532D781H | X125: ﾁｬｺｰﾙｸﾞﾚｰ
C126: 38 | D126: 003 | E126: ＦＺロッカー ３人用シリンダー錠
E127: 900W515D1790H ﾗｲﾄｽﾓ-ｸ | H127: 4573FZ Z13 | I127: 2 | J127: 台 | K127: 37300 | L127: =ROUNDUP($I$127*$K$127, 0) -> 74600 | M127: 74600 | N127: P667 | W127: 900W515D1790H | X127: ﾗｲﾄｽﾓ-ｸ | AD127: 1 | AE127: 1
K129: 【 小 計 】 | L129: =IF(COUNTIF($K119:$K128,"【金額小計】")=0, SUM($L119:$L128),SUMIF($K119:$K128,"【金額小計】",$L119:$L128)+SUMIF($K119:$K128,"【出精値引】",$L119:$L128)) -> 138500
B130: 41 | C130: 39 | E130: ◆倉庫 | T130: 1900
C132: 40 | D132: 001 | E132: ６Ｊ中軽量棚 単体型２００ｋｇ天地５段
E133: 900W470D2100H ｽﾉｰﾎﾜｲﾄ | H133: 6J75LB Z269 | I133: 2 | J133: 連 | K133: 25700 | L133: =ROUNDUP($I$133*$K$133, 0) -> 51400 | M133: 51530 | N133: P680 | W133: 900W470D2100H | X133: ｽﾉｰﾎﾜｲﾄ | AD133: 1 | AE133: 1
C134: 41 | D134: 002 | E134: ６Ｊ中軽量棚 連結型２００ｋｇ天地５段
E135: 900W470D2100H ｽﾉｰﾎﾜｲﾄ | H135: 6J75MB Z269 | I135: 7 | J135: 連 | K135: 22100 | L135: =ROUNDUP($I$135*$K$135, 0) -> 154700 | M135: 44310 | N135: P680 | W135: 900W470D2100H | X135: ｽﾉｰﾎﾜｲﾄ | AD135: 1 | AE135: 1
C136: 42 | D136: 003 | E136: ６３型 床・壁固定金具
E137: 4ｺｲﾘ ﾎﾞﾙﾄﾂｷ ﾕﾆｸﾛﾒｯｷ | H137: 63301P T03 | I137: 3 | J137: セット | K137: 1300 | L137: =ROUNDUP($I$137*$K$137, 0) -> 3900 | M137: 2630 | N137: P682，P694 | W137: 4ｺｲﾘ ﾎﾞﾙﾄﾂｷ | X137: ﾕﾆｸﾛﾒｯｷ | AD137: 2
K139: 【 小 計 】 | L139: =IF(COUNTIF($K131:$K138,"【金額小計】")=0, SUM($L131:$L138),SUMIF($K131:$K138,"【金額小計】",$L131:$L138)+SUMIF($K131:$K138,"【出精値引】",$L131:$L138)) -> 210000
B140: 45 | C140: 43 | E140: ◆倉庫（階段下） | T140: 1A00
C142: 44 | D142: 001 | E142: ６Ｊ中軽量棚 単体型２００ｋｇ天地５段
E143: 900W470D2100H ｽﾉｰﾎﾜｲﾄ | H143: 6J75LB Z269 | I143: 1 | J143: 連 | K143: 25700 | L143: =ROUNDUP($I$143*$K$143, 0) -> 25700 | M143: 51530 | N143: P680 | W143: 900W470D2100H | X143: ｽﾉｰﾎﾜｲﾄ | AD143: 1 | AE143: 1
C144: 45 | D144: 002 | E144: ６３型 床・壁固定金具
E145: 4ｺｲﾘ ﾎﾞﾙﾄﾂｷ ﾕﾆｸﾛﾒｯｷ | H145: 63301P T03 | I145: 1 | J145: セット | K145: 1300 | L145: =ROUNDUP($I$145*$K$145, 0) -> 1300 | M145: 2630 | N145: P682，P694 | W145: 4ｺｲﾘ ﾎﾞﾙﾄﾂｷ | X145: ﾕﾆｸﾛﾒｯｷ | AD145: 2
K147: 【 小 計 】 | L147: =IF(COUNTIF($K141:$K146,"【金額小計】")=0, SUM($L141:$L146),SUMIF($K141:$K146,"【金額小計】",$L141:$L146)+SUMIF($K141:$K146,"【出精値引】",$L141:$L146)) -> 27000
K149: 【 合 計 】 | L149: =SUM($L35:$L148)+SUMIF($K35:$K148,"【出精値引】",$L35:$L148)-SUMIF($K35:$K148,"【*】",$L35:$L148) -> 3010400
B150: 48 | C150: 46 | E150: 【２Ｆ】 | T150: 2000
B152: 49 | C152: 47 | E152: ◆食堂・居間 | T152: 2100
C154: 48 | D154: 001 | E154: Ｌｉｖｅｓミーティングテーブル ４本丸脚アジャスター／矩形 １８００×９００×７２０
E155: 1800W900D720H PWﾗｲﾄ/ﾌﾞﾗｯｸ | H155: 87AJAM MDA4 | I155: 1 | J155: 台 | K155: 38300 | L155: =ROUNDUP($I$155*$K$155, 0) -> 38300 | M155: 76700 | N155: P65 | W155: 1800W900D720H | X155: PWﾗｲﾄ/ﾌﾞﾗｯｸ | AD155: 1 | AE155: 1
C156: 49 | D156: 002 | E156: Ｌｉｖｅｓミーティングテーブル 単柱脚天板固定／丸形 １０５０Φ×７２０
E157: 1050W1050D720H PWﾗｲﾄ/ﾌﾞﾗｯｸ | H157: 87ABBP MDA4 | I157: 1 | J157: 台 | K157: 43200 | L157: =ROUNDUP($I$157*$K$157, 0) -> 43200 | M157: 86400 | N157: P61 | W157: 1050W1050D720H | X157: PWﾗｲﾄ/ﾌﾞﾗｯｸ | AD157: 1 | AE157: 1
C158: 50 | D158: 003 | E158: ケッテ クローズ脚 座パッドタイプ 背パッドなし ブラックフレーム ブラックシェル 座面：チャコールグレー
E159: 512W532D781H ﾁｬｺｰﾙｸﾞﾚｰ | H159: 8105XB | I159: 10 | J159: 脚 | K159: 7600 | L159: =ROUNDUP($I$159*$K$159, 0) -> 76000 | N159: P396 | W159: 512W532D781H | X159: ﾁｬｺｰﾙｸﾞﾚｰ
K161: 【 小 計 】 | L161: =IF(COUNTIF($K153:$K160,"【金額小計】")=0, SUM($L153:$L160),SUMIF($K153:$K160,"【金額小計】",$L153:$L160)+SUMIF($K153:$K160,"【出精値引】",$L153:$L160)) -> 157500
B162: 53 | C162: 51 | E162: ◆会議室 | T162: 2200
N164: (単位：円)
B165: 区分 | C165: 行№ | D165: 項目No | E165: 品名・寸法・仕様 | H165: 製品 | I165: 数量 | J165: 単位 | K165: 単価 | L165: 金額 | M165: 定価 | N165: ｶﾀﾛｸﾞ頁 | O165: 備考 | R165: 環境対応 | T165: 集計番号 | U165: 生産準備／廃番情報 | V165: Eタイプ
C166: 52 | D166: 001 | E166: マルカ サイドフォールドテーブル 棚板無 樹脂幕板付 １８００×６００
E167: 1800W600D720H PWﾐﾃﾞｨｱﾑ/ﾌﾞﾗｯｸ | H167: 81F5AB MDA5 | I167: 4 | J167: 台 | K167: 46600 | L167: =ROUNDUP($I$167*$K$167, 0) -> 186400 | M167: 93300 | N167: P463 | W167: 1800W600D720H | X167: PWﾐﾃﾞｨｱﾑ/ﾌﾞﾗｯｸ | AD167: 1 | AE167: 1
C168: 53 | D168: 002 | E168: マルカ サイドフォールドテーブル 棚板無 樹脂幕板付 １５００×６００
E169: 1500W600D720H PWﾐﾃﾞｨｱﾑ/ﾌﾞﾗｯｸ | H169: 81F5AD MDA5 | I169: 1 | J169: 台 | K169: 44600 | L169: =ROUNDUP($I$169*$K$169, 0) -> 44600 | M169: 89200 | N169: P463 | W169: 1500W600D720H | X169: PWﾐﾃﾞｨｱﾑ/ﾌﾞﾗｯｸ | AD169: 1 | AE169: 1
C170: 54 | D170: 003 | E170: ケッテ クローズ脚 座パッドタイプ 背パッドなし ブラックフレーム ブラックシェル 座面：チャコールグレー
E171: 512W532D781H ﾁｬｺｰﾙｸﾞﾚｰ | H171: 8105XB | I171: 14 | J171: 脚 | K171: 7600 | L171: =ROUNDUP($I$171*$K$171, 0) -> 106400 | N171: P396 | W171: 512W532D781H | X171: ﾁｬｺｰﾙｸﾞﾚｰ
C172: 55 | D172: 004 | E172: ４３８０ 壁掛ボード／ホワイト
E173: 1800W78D913H ﾎ-ﾛ-ﾎﾜｲﾄ | H173: 4380HA H01 | I173: 1 | J173: 台 | K173: 27100 | L173: =ROUNDUP($I$173*$K$173, 0) -> 27100 | M173: 54200 | N173: P722 | W173: 1800W78D913H | X173: ﾎ-ﾛ-ﾎﾜｲﾄ | AD173: 1 | AE173: 1
K175: 【 小 計 】 | L175: =IF(COUNTIF($K163:$K174,"【金額小計】")=0, SUM($L163:$L174),SUMIF($K163:$K174,"【金額小計】",$L163:$L174)+SUMIF($K163:$K174,"【出精値引】",$L163:$L174)) -> 364500
K177: 【 合 計 】 | L177: =SUM($L151:$L176)+SUMIF($K151:$K176,"【出精値引】",$L151:$L176)-SUMIF($K151:$K176,"【*】",$L151:$L176) -> 522000
B178: 58 | C178: 56 | E178: 【作業費】 | T178: 3000
C180: 57 | D180: 001 | E180: 搬入作業費（責任者）
H181: L900KJ | I181: 1 | J181: 名 | K181: 29000 | L181: =ROUNDUP($I$181*$K$181, 0) -> 29000
C182: 58 | D182: 002 | E182: 搬入作業費（一般）
H183: L900KJ | I183: 7 | J183: 名 | K183: 23000 | L183: =ROUNDUP($I$183*$K$183, 0) -> 161000
C184: 59 | D184: 003 | E184: 耐火金庫搬入作業費
H185: FK00KJ | I185: 1 | J185: 式 | K185: 37000 | L185: =ROUNDUP($I$185*$K$185, 0) -> 37000
C186: 60 | D186: 004 | E186: 組立作業費
H187: L900KJ | I187: 1 | J187: 式 | K187: 90000 | L187: =ROUNDUP($I$187*$K$187, 0) -> 90000
C188: 61 | E188: ※平日日中作業とさせていただきます。
C189: 62 | E189: ※養生費含む
C190: 63 | E190: ※既存製品の廃棄は含まれておりません。
K193: 【 合 計 】 | L193: =IF(COUNTIF($K179:$K192,"【金額小計】")=0, SUM($L179:$L192),SUMIF($K179:$K192,"【金額小計】",$L179:$L192)+SUMIF($K179:$K192,"【出精値引】",$L179:$L192)) -> 317000
B194: 66 | C194: 64 | T194: 4000
C196: 65 | D196: 001 | E196: 配送費
H197: O888PF | I197: 1 | J197: 式 | K197: 247200 | L197: =ROUNDUP($I$197*$K$197, 0) -> 247200
K199: 【 合 計 】 | L199: =IF(COUNTIF($K195:$K198,"【金額小計】")=0, SUM($L195:$L198),SUMIF($K195:$K198,"【金額小計】",$L195:$L198)+SUMIF($K195:$K198,"【出精値引】",$L195:$L198)) -> 247200
K201: 【見積金額】 | L201: =IF(COUNTIF($K35:OFFSET(INDIRECT(ADDRESS(ROW(),COLUMN())), -1, -1),"【 合 計 】")=0,SUM($L35:OFFSET(INDIRECT(ADDRESS(ROW(),COLUMN())), -1, 0))-SUMIF($K35:OFFSET(INDIRECT(ADDRESS(ROW(),COLUMN())), -1, -1),"【*】",$L35:OFFSET(INDIRECT(ADDRESS(ROW(),COLUMN())), -1, 0)),SUM($L35:OFFSET(INDIRECT(ADDRESS(ROW(),COLUMN())), -1, 0))-SUMIF($K35:OFFSET(INDIRECT(ADDRESS(ROW(),COLUMN())), -1, -1),"【*】",$L35:OFFSET(INDIRECT(ADDRESS(ROW(),COLUMN())), -1, 0))) -> 4096600
E203: 【カタログページ数の表示について】
E204: 「オフィス総合カタログ２０２０」 ページ数です。
